bitfinex/quotes_BTCUSD_20241003
["timestamp","ask_amount","ask_price","bid_price","bid_amount"]
[1727975589566,0.165147,60552.0,60551.0,0.001634]
[1727975591574,0.174147,60552.0,60551.0,0.002634]
[1727975592098,0.280147,60552.0,60551.0,0.003634]
[1727975592368,0.54570679,60552.0,60551.0,0.002634]
[1727975592593,0.63150679,60552.0,60551.0,0.003634]
[1727975592835,0.63150679,60552.0,60551.0,0.002634]
[1727975592836,0.62250679,60552.0,60551.0,0.002634]
[1727975593097,0.002,60551.0,60550.0,4e-05]
[1727975593345,0.242971,60543.0,60542.0,0.2491922]
[1727975593818,0.242971,60543.0,60534.0,0.2491922]
[1727975593819,0.165177,60541.0,60534.0,0.2491922]
[1727975595271,0.54890221,60541.0,60522.0,0.00163]
[1727975595561,0.54890221,60541.0,60540.0,0.00263]
[1727975595562,0.55490221,60541.0,60540.0,0.00263]
[1727975595789,0.57790221,60541.0,60540.0,0.00263]
[1727975596021,0.74108892,60541.0,60540.0,0.00263]
[1727975596258,0.83448892,60541.0,60540.0,0.00163]
[1727975596492,0.84148892,60541.0,60540.0,0.00263]
[1727975596732,0.83248892,60541.0,60540.0,0.00263]
[1727975596976,0.83248892,60541.0,60522.0,0.00163]
[1727975596977,0.165212,60528.0,60522.0,0.00163]
[1727975597235,0.52693721,60528.0,60522.0,0.00163]
[1727975597706,0.165226,60523.0,60522.0,0.00163]
[1727975598002,0.44895121,60523.0,60522.0,0.00163]
[1727975598717,0.165226,60523.0,60522.0,0.00163]
[1727975598974,0.006,60523.0,60522.0,0.00263]
[1727975599230,0.006,60523.0,60522.0,0.167859]
[1727975599441,0.2491922,60539.0,60522.0,0.166857]
[1727975599442,0.165216,60527.0,60522.0,0.166857]
[1727975599671,0.330424,60529.0,60522.0,0.166857]
[1727975599672,0.33043,60528.0,60522.0,0.167858]
[1727975599913,0.165218,60527.0,60523.0,0.165225]
[1727975600141,0.008,60528.0,60522.0,0.00263]
[1727975600601,0.165197,60534.0,60527.0,0.49564]
[1727975600852,0.02589686,60529.0,60528.0,0.165212]
[1727975601075,0.2491922,60532.0,60523.0,0.49363771]
[1727975601306,0.2491922,60531.0,60522.0,0.00163]
[1727975601529,0.165216,60527.0,60522.0,0.4160502]
[1727975601764,0.02491922,60530.0,60524.0,0.165223]
[1727975601987,0.165222,60525.0,60522.0,0.00163]
[1727975602229,0.60452642,60530.0,60522.0,0.00163]
[1727975602230,0.02491922,60530.0,60522.0,0.00163]
[1727975602692,0.16522,60526.0,60522.0,0.00163]
[1727975602941,0.02491922,60530.0,60522.0,0.00163]
[1727975603191,0.06877292,60529.0,60522.0,0.00163]
[1727975603426,0.165218,60526.0,60522.0,0.166858]
[1727975603648,0.165218,60526.0,60522.0,0.00163]
[1727975603885,0.165221,60525.0,60522.0,0.00363]
[1727975604590,0.330426,60528.0,60522.0,0.00363]
[1727975604833,0.0699207,60527.0,60523.0,0.165225]
[1727975605305,0.2351367,60527.0,60523.0,0.165225]
[1727975605537,0.2351367,60527.0,60523.0,0.165226]
[1727975605763,0.2351367,60527.0,60522.0,0.00163]
[1727975605764,0.001,60525.0,60522.0,0.00263]
[1727975606200,0.001,60525.0,60522.0,0.00463]
[1727975606421,0.0699207,60527.0,60522.0,0.168856]
[1727975606641,0.09343327,60526.0,60523.0,0.001]
[1727975607107,0.09343327,60526.0,60524.0,0.165223]
[1727975607364,0.09343327,60526.0,60523.0,0.001]
[1727975607591,0.25865327,60526.0,60523.0,0.001]
[1727975607811,0.09343327,60526.0,60523.0,0.004]
[1727975608036,0.10992888,60525.0,60523.0,0.001]
[1727975608273,0.10992888,60525.0,60524.0,0.004]
[1727975608523,0.0699207,60527.0,60522.0,0.00163]
[1727975608741,0.165226,60523.0,60522.0,0.00163]
[1727975609194,0.165226,60523.0,60522.0,0.00263]
[1727975609463,0.19112609,60523.0,60522.0,0.00263]
[1727975609679,0.165226,60523.0,60522.0,0.00163]
[1727975610147,0.166226,60523.0,60522.0,0.00163]
[1727975611374,0.189226,60523.0,60522.0,0.00163]
[1727975612066,0.190226,60523.0,60522.0,0.00163]
[1727975612298,0.189226,60523.0,60522.0,0.00163]
[1727975612530,0.22512851,60523.0,60522.0,0.00163]
[1727975612763,0.23212851,60523.0,60522.0,0.00263]
[1727975612988,0.47114468,60523.0,60522.0,0.00263]
[1727975613225,0.48514468,60523.0,60522.0,0.00263]
[1727975613971,0.48714468,60523.0,60522.0,0.00263]
[1727975614210,0.48014468,60523.0,60522.0,0.00163]
[1727975614441,0.56434468,60523.0,60522.0,0.00263]
[1727975614691,0.165272,60506.0,60505.0,0.2491922]
[1727975614926,0.44899721,60506.0,60505.0,0.2491922]
[1727975615433,0.44899721,60506.0,60500.0,0.17617636]
[1727975615434,0.165286,60501.0,60500.0,0.17617636]
[1727975615673,0.44901121,60501.0,60500.0,0.17617636]
[1727975615911,0.165286,60501.0,60500.0,0.17617636]
[1727975616866,0.166286,60501.0,60500.0,0.17617636]
[1727975617340,0.165286,60501.0,60500.0,0.17617636]
[1727975617806,0.166286,60501.0,60500.0,0.18117636]
[1727975618274,0.27394702,60501.0,60500.0,0.18117636]
[1727975618616,0.29985553,60501.0,60500.0,0.18117636]
[1727975618848,0.166286,60501.0,60500.0,0.18117636]
[1727975620584,0.166286,60501.0,60500.0,0.18281236]
[1727975621979,0.3555737,60501.0,60500.0,0.18281236]
[1727975623805,0.38148408,60501.0,60500.0,0.18281236]
[1727975624612,0.19219638,60501.0,60500.0,0.18281236]
[1727975625478,0.166286,60501.0,60500.0,0.18281236]
[1727975628047,0.29287579,60501.0,60500.0,0.18281236]
[1727975628309,0.31878477,60501.0,60500.0,0.18281236]
[1727975629365,0.29287579,60501.0,60500.0,0.18281236]
[1727975629792,0.166286,60501.0,60500.0,0.18281236]
[1727975631314,0.3555737,60501.0,60500.0,0.18281236]
[1727975632492,0.38248439,60501.0,60500.0,0.18881236]
[1727975633742,0.38048439,60501.0,60500.0,0.17781236]
[1727975634000,0.38648439,60501.0,60500.0,0.17881236]
[1727975634253,0.47721526,60501.0,60500.0,0.17781236]
[1727975634455,0.47021526,60501.0,60500.0,0.17781236]
[1727975634682,0.47321526,60501.0,60500.0,0.17781236]
[1727975634910,0.47721526,60501.0,60500.0,0.17781236]
[1727975636043,0.45130457,60501.0,60500.0,0.17781236]
[1727975638536,0.47430457,60501.0,60500.0,0.17781236]
[1727975638780,0.47430457,60501.0,60490.0,0.00163]
[1727975638781,0.002,60497.0,60490.0,0.00163]
[1727975639020,0.1,60500.0,60490.0,0.00163]
[1727975639021,0.4546007,60491.0,60490.0,0.00163]
[1727975639275,0.265313,60491.0,60490.0,0.00163]
[1727975639489,0.4546007,60491.0,60490.0,0.00163]
[1727975640853,0.4616007,60491.0,60490.0,0.00263]
[1727975641072,0.4616007,60491.0,60490.0,0.00163]
[1727975641073,0.4606007,60491.0,60490.0,0.00163]
[1727975641528,0.4656007,60491.0,60490.0,0.00163]
[1727975641764,0.176313,60491.0,60490.0,0.00163]
[1727975642936,0.20222611,60491.0,60490.0,0.00163]
[1727975643620,0.19622611,60491.0,60490.0,0.00163]
[1727975643843,0.19222611,60491.0,60490.0,0.00163]
[1727975644059,0.19322611,60491.0,60490.0,0.00663]
[1727975644292,0.19122611,60491.0,60490.0,0.00163]
[1727975644509,0.31053242,60491.0,60490.0,0.00163]
[1727975644726,0.31153242,60491.0,60490.0,0.00663]
[1727975644951,0.19322611,60491.0,60490.0,0.00663]
[1727975645413,0.002,60491.0,60490.0,0.171946]
[1727975645907,0.002,60491.0,60490.0,0.00163]
[1727975646139,0.165313,60491.0,60490.0,0.00163]
[1727975646365,0.165313,60491.0,60490.0,0.00663]
[1727975646366,0.166313,60491.0,60490.0,0.00663]
[1727975646585,0.166313,60491.0,60490.0,0.00363]
[1727975647063,0.167313,60491.0,60490.0,0.01063]
[1727975647288,0.167313,60491.0,60490.0,0.00363]
[1727975647289,0.2481487,60491.0,60490.0,0.00363]
[1727975647514,0.2491487,60491.0,60490.0,0.00763]
[1727975647736,0.2491487,60491.0,60490.0,0.00363]
[1727975648691,0.27506361,60491.0,60490.0,0.00363]
[1727975649150,0.27406361,60491.0,60490.0,0.00163]
[1727975649380,0.37406361,60491.0,60490.0,0.00463]
[1727975649640,0.37506361,60491.0,60490.0,0.00163]
[1727975649863,0.270313,60491.0,60490.0,0.00163]
[1727975650086,0.269313,60491.0,60490.0,0.00163]
[1727975650315,0.175313,60491.0,60490.0,0.00163]
[1727975650541,0.171313,60491.0,60490.0,0.00163]
[1727975650764,0.165313,60491.0,60490.0,0.00163]
[1727975650988,0.171313,60491.0,60490.0,0.00263]
[1727975651204,0.172313,60491.0,60490.0,0.00163]
[1727975651893,0.007,60491.0,60490.0,0.00163]
[1727975652136,0.007,60491.0,60490.0,0.245046]
[1727975652374,0.167313,60491.0,60490.0,0.24291671]
[1727975652605,0.169313,60491.0,60490.0,0.00163]
[1727975652842,0.4165052,60491.0,60490.0,0.00163]
[1727975653071,0.3546007,60491.0,60490.0,0.00163]
[1727975653313,0.165313,60491.0,60490.0,0.00163]
[1727975653586,0.166313,60491.0,60490.0,0.00863]
[1727975653798,0.166313,60491.0,60490.0,0.00263]
[1727975654042,0.165313,60491.0,60490.0,0.00163]
[1727975654279,0.165313,60491.0,60490.0,0.00363]
[1727975654523,0.19122696,60491.0,60490.0,0.00363]
[1727975655226,0.02591396,60491.0,60490.0,0.00363]
[1727975655457,0.02591396,60491.0,60490.0,0.00163]
[1727975655708,0.02691396,60491.0,60490.0,0.00663]
[1727975655974,0.02591396,60491.0,60490.0,0.33013271]
[1727975656200,0.000818,60494.0,60493.0,0.165308]
[1727975656453,0.000818,60494.0,60490.0,0.17281671]
[1727975656677,0.165308,60493.0,60491.0,0.16318671]
[1727975656924,0.000818,60494.0,60491.0,0.16318671]
[1727975657167,0.166124,60494.0,60491.0,0.32849871]
[1727975657447,0.001818,60494.0,60493.0,0.172308]
[1727975657695,0.001818,60494.0,60493.0,0.52478241]
[1727975657918,0.001818,60494.0,60493.0,0.35947441]
[1727975658140,0.001818,60494.0,60493.0,0.17018671]
[1727975658407,0.167123,60494.0,60493.0,0.007]
[1727975658656,0.165313,60491.0,60490.0,0.00263]
[1727975659122,0.19122417,60491.0,60490.0,0.00263]
[1727975659377,0.19122417,60491.0,60490.0,0.00163]
[1727975660038,0.31148376,60491.0,60490.0,0.00163]
[1727975660285,0.31248376,60491.0,60490.0,0.00863]
[1727975660495,0.28757259,60491.0,60490.0,0.00963]
[1727975661194,0.47686029,60491.0,60490.0,0.00963]
[1727975662092,0.47586029,60491.0,60490.0,0.00263]
[1727975662313,0.167313,60491.0,60490.0,0.00963]
[1727975662630,0.167313,60491.0,60490.0,0.00163]
[1727975662631,0.3556007,60491.0,60490.0,0.00163]
[1727975662835,0.4576007,60491.0,60490.0,0.00963]
[1727975663058,0.52215211,60491.0,60490.0,0.00263]
[1727975663279,0.52015211,60491.0,60490.0,0.00163]
[1727975663501,0.52015211,60491.0,60490.0,0.00863]
[1727975663502,0.52215211,60491.0,60490.0,0.00863]
[1727975663755,0.52215211,60491.0,60490.0,0.00263]
[1727975663756,0.54806826,60491.0,60490.0,0.00263]
[1727975664036,0.54706826,60491.0,60490.0,0.00163]
[1727975664502,0.64476413,60491.0,60490.0,0.00163]
[1727975664707,0.29222915,60491.0,60490.0,0.00163]
[1727975665219,0.29222915,60491.0,60490.0,0.00363]
[1727975665470,0.29122915,60491.0,60490.0,0.00163]
[1727975665690,0.29222915,60491.0,60490.0,0.00163]
[1727975666183,0.58808961,60491.0,60490.0,0.00163]
[1727975666402,0.59008961,60491.0,60490.0,0.00163]
[1727975666836,0.58808961,60491.0,60490.0,0.00163]
[1727975667287,0.59408961,60491.0,60490.0,0.00163]
[1727975669173,0.4656007,60491.0,60490.0,0.00163]
[1727975669390,0.276313,60491.0,60490.0,0.00163]
[1727975671819,0.176313,60491.0,60490.0,0.00163]
[1727975673917,0.20222788,60491.0,60490.0,0.00163]
[1727975675375,0.011,60491.0,60490.0,0.33013271]
[1727975675598,0.011,60491.0,60490.0,0.41083271]
[1727975676087,0.000818,60494.0,60490.0,0.24551671]
[1727975676308,0.000818,60494.0,60492.0,0.16531]
[1727975676536,0.000818,60494.0,60493.0,0.16318671]
[1727975677227,0.000818,60494.0,60493.0,0.32849471]
[1727975677938,0.001818,60494.0,60493.0,0.16318671]
[1727975678194,0.001818,60494.0,60493.0,0.51778241]
[1727975678428,0.001818,60494.0,60493.0,0.70868241]
[1727975678882,0.001818,60494.0,60493.0,0.7579991]
[1727975679113,0.00153737,60494.0,60493.0,0.7609991]
[1727975679349,0.00053737,60494.0,60493.0,0.7579991]
[1727975679612,0.00253737,60494.0,60493.0,0.71968241]
[1727975679833,0.00253737,60494.0,60493.0,0.7689991]
[1727975680064,0.00253737,60494.0,60493.0,0.53039471]
[1727975681008,0.00253737,60494.0,60493.0,0.17418671]
[1727975681241,0.00253737,60494.0,60493.0,0.17582271]
[1727975681465,0.00253737,60494.0,60493.0,0.34113071]
[1727975681699,0.00253737,60494.0,60493.0,0.17582271]
[1727975682222,0.16684237,60494.0,60493.0,0.16782271]
[1727975682464,0.20015531,60494.0,60493.0,0.007636]
[1727975682701,0.16784237,60494.0,60493.0,0.010636]
[1727975682918,0.16684237,60494.0,60493.0,0.004636]
[1727975683392,0.16784237,60494.0,60493.0,0.010636]
[1727975683640,0.25233719,60494.0,60493.0,0.007636]
[1727975683858,0.25233719,60494.0,60493.0,0.004636]
[1727975683859,0.33313719,60494.0,60493.0,0.004636]
[1727975684310,0.33313719,60494.0,60493.0,0.006636]
[1727975685258,0.33213719,60494.0,60493.0,0.003636]
[1727975685477,0.33213719,60494.0,60493.0,0.001636]
[1727975685925,0.34413719,60494.0,60493.0,0.003636]
[1727975686411,0.24664237,60494.0,60493.0,0.002636]
[1727975686640,0.24664237,60494.0,60493.0,0.001636]
[1727975686869,0.26064237,60494.0,60493.0,0.002636]
[1727975687318,0.27264237,60494.0,60493.0,0.002636]
[1727975689334,0.29855663,60494.0,60493.0,0.002636]
[1727975689559,0.42287076,60494.0,60493.0,0.002636]
[1727975690690,0.3969565,60494.0,60493.0,0.002636]
[1727975691931,0.19184237,60494.0,60493.0,0.002636]
[1727975692855,0.17784237,60494.0,60493.0,0.001636]
[1727975693098,0.16584237,60494.0,60493.0,0.001636]
[1727975693526,0.16884237,60494.0,60493.0,0.001636]
[1727975693759,0.18284237,60494.0,60493.0,0.002636]
[1727975694253,0.20875458,60494.0,60493.0,0.002636]
[1727975695152,0.16884237,60494.0,60493.0,0.001636]
[1727975695365,0.17384237,60494.0,60493.0,0.002636]
[1727975696039,0.16884237,60494.0,60493.0,0.001636]
[1727975696284,0.00053737,60494.0,60493.0,0.166944]
[1727975696508,0.00053737,60494.0,60493.0,0.005636]
[1727975696733,0.00053737,60494.0,60493.0,0.33413071]
[1727975696949,0.00053737,60494.0,60493.0,0.33013071]
[1727975698274,0.00453737,60494.0,60493.0,0.16482271]
[1727975698489,0.03244629,60494.0,60493.0,0.16482271]
[1727975698714,0.02644629,60494.0,60493.0,0.16482271]
[1727975698991,0.02744629,60494.0,60493.0,0.17282271]
[1727975699426,0.00153737,60494.0,60493.0,0.17282271]
[1727975699650,0.00153737,60494.0,60493.0,0.33813071]
[1727975700111,0.00153737,60494.0,60493.0,0.43673071]
[1727975700579,0.00153737,60494.0,60493.0,0.51833071]
[1727975700827,0.00153737,60494.0,60493.0,0.64633071]
[1727975701081,0.165262,60510.0,60506.0,0.246872]
[1727975701317,0.165273,60506.0,60501.0,0.330571]
[1727975701641,0.330516,60512.0,60497.0,0.412192]
[1727975701892,0.1892877,60508.0,60494.0,0.5797992]
[1727975702091,0.330576,60501.0,60495.0,0.330604]
[1727975702365,0.165276,60505.0,60498.0,0.330587]
[1727975702609,0.2491922,60514.0,60504.0,0.165277]
[1727975702610,0.001,60506.0,60504.0,0.165277]
[1727975702831,0.2491922,60514.0,60504.0,0.16318671]
[1727975703059,0.165272,60506.0,60505.0,0.16318671]
[1727975703283,0.330565,60503.0,60492.0,0.4384799]
[1727975703511,0.165283,60503.0,60499.0,0.2491922]
[1727975703726,0.165286,60502.0,60499.0,0.16318671]
[1727975703949,0.165288,60501.0,60499.0,0.16318671]
[1727975704188,0.3564643,60504.0,60499.0,0.16318671]
[1727975704413,0.2491922,60502.0,60494.0,0.330609]
[1727975704636,0.0259063,60504.0,60492.0,0.2491922]
[1727975704860,0.165301,60496.0,60493.0,0.33012971]
[1727975705081,0.0259063,60504.0,60493.0,0.16482271]
[1727975705082,0.165303,60495.0,60493.0,0.16482271]
[1727975705319,0.330594,60498.0,60493.0,0.33012971]
[1727975705542,0.001,60504.0,60495.0,0.330602]
[1727975705773,0.001,60504.0,60503.0,0.165281]
[1727975706256,0.0795,60518.0,60506.0,0.330541]
[1727975706471,0.0795,60518.0,60498.0,0.0757]
[1727975706472,0.330497,60515.0,60498.0,0.0757]
[1727975706676,0.330497,60515.0,60507.0,0.330535]
[1727975706961,0.165264,60509.0,60505.0,0.165274]
[1727975707185,0.165277,60505.0,60501.0,0.165286]
[1727975707423,0.31511112,60514.0,60493.0,0.095636]
[1727975707424,0.165286,60501.0,60493.0,0.095636]
[1727975707649,0.165299,60497.0,60495.0,0.2491922]
[1727975707910,0.165292,60499.0,60495.0,0.2491922]
[1727975708135,0.330559,60504.0,60503.0,0.015]
[1727975708136,0.167278,60504.0,60503.0,0.015]
[1727975708385,0.167278,60504.0,60503.0,0.006]
[1727975708625,0.001,60504.0,60494.0,0.2491922]
[1727975708867,0.330594,60498.0,60494.0,0.2491922]
[1727975709120,0.001,60497.0,60495.0,0.005]
[1727975709355,0.001,60497.0,60496.0,0.32848671]
[1727975709614,0.330558,60504.0,60499.0,0.16529]
[1727975709859,0.330558,60504.0,60503.0,0.165281]
[1727975709860,0.008,60504.0,60503.0,0.165281]
[1727975710103,0.165284,60502.0,60498.0,0.165293]
[1727975710335,0.008,60504.0,60493.0,0.001636]
[1727975710564,0.165287,60501.0,60497.0,0.165296]
[1727975710783,0.173279,60504.0,60497.0,0.49377771]
[1727975711028,0.330523,60511.0,60498.0,0.16318671]
[1727975711247,0.4144432,60514.0,60510.0,0.16526]
[1727975711487,0.4144432,60514.0,60513.0,0.165253]
[1727975711488,0.2491922,60514.0,60513.0,0.165253]
[1727975711757,0.2491922,60514.0,60509.0,0.495787]
[1727975711987,0.165254,60513.0,60509.0,0.495787]
[1727975712208,0.165254,60513.0,60509.0,0.165262]
[1727975712441,0.330507,60513.0,60506.0,0.330541]
[1727975712665,0.165259,60511.0,60510.0,0.002]
[1727975712894,0.165259,60511.0,60501.0,0.2491922]
[1727975712895,0.165283,60502.0,60501.0,0.2491922]
[1727975713085,0.165282,60503.0,60501.0,0.2491922]
[1727975713339,0.165282,60503.0,60498.0,0.330585]
[1727975713532,0.165286,60501.0,60498.0,0.165294]
[1727975714039,0.165287,60501.0,60494.0,0.2491922]
[1727975714334,0.165287,60501.0,60498.0,0.165293]
[1727975714548,0.35647298,60503.0,60502.0,0.165283]
[1727975714549,0.02590698,60503.0,60502.0,0.165283]
[1727975714988,0.02590698,60503.0,60498.0,0.006]
[1727975715232,0.02590698,60503.0,60500.0,0.165287]
[1727975715461,0.19118898,60503.0,60499.0,0.16529]
[1727975715694,0.02590698,60503.0,60501.0,0.165284]
[1727975715946,0.02590698,60503.0,60498.0,0.330586]
[1727975716192,0.02590698,60503.0,60502.0,0.165283]
[1727975716448,0.000818,60506.0,60505.0,0.165275]
[1727975716694,0.000818,60506.0,60505.0,0.32846171]
[1727975717471,0.000818,60506.0,60502.0,0.008]
[1727975717700,0.166092,60506.0,60501.0,0.330572]
[1727975717954,0.166092,60506.0,60493.0,0.2508282]
[1727975717955,0.002818,60506.0,60498.0,0.330589]
[1727975718229,0.002818,60506.0,60503.0,0.495841]
[1727975718465,0.000818,60506.0,60504.0,0.165276]
[1727975718915,0.000818,60506.0,60503.0,0.330561]
[1727975718919,0.000818,60506.0,60505.0,0.32846171]
[1727975718920,0.002818,60506.0,60505.0,0.32846171]
[1727975719929,0.165278,60504.0,60499.0,0.330579]
[1727975720181,0.002818,60506.0,60503.0,0.16528]
[1727975720182,0.000818,60506.0,60503.0,0.16528]
[1727975720442,0.000818,60506.0,60501.0,0.2491922]
[1727975720443,0.165278,60505.0,60501.0,0.165284]
[1727975720685,0.002818,60506.0,60500.0,0.16318671]
[1727975720934,0.165276,60505.0,60502.0,0.165282]
[1727975721177,0.000818,60506.0,60504.0,0.001]
[1727975721426,0.34892365,60506.0,60499.0,0.16929]
[1727975721690,0.34892365,60506.0,60500.0,0.330578]
[1727975721691,0.000818,60506.0,60500.0,0.330578]
[1727975721966,0.001,60505.0,60501.0,0.006]
[1727975722213,0.165286,60501.0,60500.0,0.002]
[1727975722698,0.000818,60506.0,60503.0,0.165279]
[1727975722930,0.166091,60506.0,60503.0,0.165279]
[1727975723164,0.165277,60505.0,60501.0,0.165285]
[1727975723906,0.000818,60506.0,60501.0,0.003]
[1727975724150,0.165283,60502.0,60501.0,0.003]
[1727975724635,0.243583,60502.0,60501.0,0.003]
[1727975724999,0.243583,60502.0,60494.0,0.001636]
[1727975725000,0.165302,60495.0,60494.0,0.001636]
[1727975725269,0.3545897,60495.0,60494.0,0.001636]
[1727975725748,0.165302,60495.0,60494.0,0.001636]
[1727975726021,0.0783,60502.0,60494.0,0.16482271]
[1727975726022,0.009,60502.0,60494.0,0.16482271]
[1727975726255,0.000818,60506.0,60495.0,0.16318671]
[1727975726256,0.2491922,60501.0,60495.0,0.16318671]
[1727975726492,0.000818,60506.0,60495.0,0.16318671]
[1727975726493,0.330555,60505.0,60495.0,0.16318671]
[1727975726738,0.000818,60506.0,60502.0,0.165283]
[1727975726995,0.000818,60506.0,60496.0,0.330599]
[1727975726996,0.000818,60506.0,60501.0,0.001]
[1727975727252,0.000818,60506.0,60502.0,0.165281]
[1727975727253,0.166091,60506.0,60502.0,0.165281]
[1727975727497,0.165275,60505.0,60502.0,0.165283]
[1727975727959,0.007,60505.0,60503.0,0.2491922]
[1727975728202,0.007,60505.0,60504.0,0.165278]
[1727975728463,0.000818,60506.0,60496.0,0.2491922]
[1727975728703,0.000818,60506.0,60497.0,0.16318671]
[1727975728950,0.000818,60506.0,60504.0,0.165278]
[1727975728951,0.02590526,60505.0,60504.0,0.165278]
[1727975729185,0.02590526,60505.0,60500.0,0.330574]
[1727975729424,0.02590526,60505.0,60504.0,0.006]
[1727975729425,0.02690526,60505.0,60504.0,0.006]
[1727975729679,0.02690526,60505.0,60504.0,0.171278]
[1727975729937,0.03390526,60505.0,60504.0,0.171278]
[1727975730210,0.008,60505.0,60504.0,0.006]
[1727975730449,0.001,60505.0,60504.0,0.006]
[1727975730726,0.000818,60506.0,60505.0,0.165275]
[1727975730969,0.000818,60506.0,60505.0,0.51774941]
[1727975731726,0.000818,60506.0,60505.0,0.32846171]
[1727975732226,0.000818,60506.0,60505.0,0.33346171]
[1727975733216,0.000818,60506.0,60505.0,0.172275]
[1727975733725,0.000818,60506.0,60505.0,0.007]
[1727975733983,0.000818,60506.0,60505.0,0.172275]
[1727975734235,0.000818,60506.0,60505.0,0.33546171]
[1727975738707,0.000818,60506.0,60505.0,0.007]
[1727975739169,0.000818,60506.0,60505.0,0.172275]
[1727975739688,0.000818,60506.0,60505.0,0.007]
[1727975739689,0.24569,60506.0,60505.0,0.007]
[1727975739930,0.34569,60506.0,60505.0,0.007]
[1727975740625,0.34569,60506.0,60505.0,0.002]
[1727975740626,0.43619,60506.0,60505.0,0.002]
[1727975741107,0.1653,60496.0,60495.0,0.2491922]
[1727975741818,0.1653,60496.0,60494.0,0.001636]
[1727975742049,0.165302,60495.0,60494.0,0.001636]
[1727975742959,0.245902,60495.0,60494.0,0.001636]
[1727975743426,0.27181368,60495.0,60494.0,0.001636]
[1727975745101,0.56110138,60495.0,60494.0,0.001636]
[1727975745351,0.66170138,60495.0,60494.0,0.001636]
[1727975746302,0.47041368,60495.0,60494.0,0.001636]
[1727975746762,0.47441368,60495.0,60494.0,0.001636]
[1727975746986,0.38541368,60495.0,60494.0,0.002636]
[1727975747520,0.52313185,60495.0,60494.0,0.002636]
[1727975747760,0.48141368,60495.0,60494.0,0.002636]
[1727975748022,0.47041368,60495.0,60494.0,0.001636]
[1727975748492,0.47841368,60495.0,60494.0,0.002636]
[1727975748744,0.37841368,60495.0,60494.0,0.002636]
[1727975748959,0.37841368,60495.0,60494.0,0.003636]
[1727975748960,0.38441368,60495.0,60494.0,0.003636]
[1727975749181,0.28581368,60495.0,60494.0,0.003636]
[1727975749430,0.28581368,60495.0,60494.0,0.001636]
[1727975749431,0.27181368,60495.0,60494.0,0.001636]
[1727975749924,0.02591168,60495.0,60494.0,0.001636]
[1727975750140,0.03691168,60495.0,60494.0,0.002636]
[1727975750369,0.20221368,60495.0,60494.0,0.002636]
[1727975750640,0.03091168,60495.0,60494.0,0.001636]
[1727975751431,0.03091168,60495.0,60494.0,0.166941]
[1727975751432,0.03491168,60495.0,60494.0,0.166941]
[1727975751653,0.03491168,60495.0,60494.0,0.001636]
[1727975751902,0.004,60495.0,60494.0,0.001636]
[1727975752137,0.004,60495.0,60494.0,0.005636]
[1727975752411,0.004,60495.0,60494.0,0.170941]
[1727975752671,0.330545,60507.0,60498.0,0.330589]
[1727975752913,0.330545,60507.0,60494.0,0.16882271]
[1727975752914,0.2491922,60501.0,60494.0,0.16882271]
[1727975753158,0.330578,60501.0,60495.0,0.32848771]
[1727975753394,0.4384799,60504.0,60494.0,0.006636]
[1727975753633,0.330573,60501.0,60494.0,0.005636]
[1727975753859,0.165301,60496.0,60494.0,0.005636]
[1727975754347,0.165302,60495.0,60494.0,0.005636]
[1727975754836,0.330573,60501.0,60494.0,0.001636]
[1727975755085,0.003,60501.0,60494.0,0.001636]
[1727975755331,0.000818,60505.0,60494.0,0.001636]
[1727975755332,0.165298,60497.0,60494.0,0.001636]
[1727975755583,0.330557,60504.0,60494.0,0.001636]
[1727975755584,0.330581,60500.0,60494.0,0.001636]
[1727975755856,0.165298,60497.0,60494.0,0.17094]
[1727975756107,0.165298,60497.0,60494.0,0.001636]
[1727975756619,0.4144942,60495.0,60494.0,0.001636]
[1727975756859,0.242002,60495.0,60494.0,0.001636]
[1727975758382,0.242002,60495.0,60494.0,0.005636]
[1727975759103,0.242002,60495.0,60494.0,0.006636]
[1727975759338,0.242002,60495.0,60494.0,0.05595365]
[1727975759576,0.242002,60495.0,60494.0,0.05495365]
[1727975759898,0.242002,60495.0,60494.0,0.001636]
[1727975760151,0.38830897,60495.0,60494.0,0.001636]
[1727975760391,0.38430897,60495.0,60494.0,0.001636]
[1727975760659,0.242002,60495.0,60494.0,0.001636]
[1727975760919,0.248002,60495.0,60494.0,0.002636]
[1727975761174,0.250002,60495.0,60494.0,0.002636]
[1727975761416,0.248002,60495.0,60494.0,0.002636]
[1727975761675,0.248002,60495.0,60494.0,0.003636]
[1727975761676,0.177302,60495.0,60494.0,0.003636]
[1727975761921,0.012,60495.0,60494.0,0.40610419]
[1727975762158,0.006,60495.0,60494.0,0.7048137]
[1727975762396,0.008,60495.0,60494.0,0.45412771]
[1727975762897,0.004,60495.0,60494.0,0.45312771]
[1727975763173,0.004,60495.0,60494.0,0.33550641]
[1727975763416,0.004,60495.0,60494.0,0.33950641]
[1727975763655,0.004,60495.0,60494.0,0.41333753]
[1727975763904,0.004818,60495.0,60494.0,0.38473171]
[1727975764147,0.004818,60495.0,60494.0,0.39673171]
[1727975764148,0.005818,60495.0,60494.0,0.39673171]
[1727975764393,0.005818,60495.0,60494.0,0.53679411]
[1727975764626,0.001818,60495.0,60494.0,0.53679411]
[1727975764848,0.002818,60495.0,60494.0,0.54979411]
[1727975765083,0.002818,60495.0,60494.0,0.53679411]
[1727975765525,0.003818,60495.0,60494.0,0.54979411]
[1727975765747,0.001818,60495.0,60494.0,0.65979411]
[1727975765975,0.000818,60495.0,60494.0,0.64779411]
[1727975766228,0.002818,60495.0,60494.0,0.67979411]
[1727975766708,0.001818,60495.0,60494.0,0.66579411]
[1727975767143,0.001818,60495.0,60494.0,0.68179411]
[1727975767144,0.002818,60495.0,60494.0,0.68179411]
[1727975767653,0.000818,60505.0,60504.0,0.023]
[1727975767888,0.000818,60505.0,60504.0,0.64075241]
[1727975769044,0.001818,60505.0,60504.0,0.65375241]
[1727975769497,0.001818,60505.0,60504.0,0.35246471]